[Event "ESP-ch Rapid 2018"]
[Site "Linares"]
[Date "2018.08.19"]
[Round "5"]
[White "Ruiz Casado, Francisco Javier"]
[Black "Estremera Panos, Sergio"]
[Result "0-1"]
[ECO "E00"]
[WhiteElo "1975"]
[BlackElo "2337"]
[Annotator "NA"]
[PlyCount "96"]
[EventDate "2018.08.19"]
[EventType "team-tourn"]
[EventCountry "ESP"]
[SourceTitle "playchess.com"]
[Source "ChessBase"]
[SourceQuality "1"]
[TimeControl "900+5"]

1. d4 {[%emt 0:00:00]} Nf6 {[%emt 0:00:19]} 2. c4 {[%emt 0:00:02]} e6 {[%emt 0:00:01]} 3. e3 {[%emt 0:00:02]} d5 {[%emt 0:00:08]} 4. Nf3 {[%emt 0:00:02]} c5 {[%emt 0:00:02]} 5. Nc3 {[%emt 0:00:46]} a6 {[%emt 0:00:04]} 6. cxd5 {[%emt 0:00:33]} exd5 {[%emt 0:00:03]} 7. dxc5 {[%emt 0:00:26]} Bxc5 {[%emt 0:00:03]} 8. a3 {[%emt 0:00:13]} Nc6 {[%emt 0:00:12]} 9. Be2 {[%emt 0:00:40]} O-O {[%emt 0:00:04]} 10. O-O {[%emt 0:00:03]} Ba7 {[%emt 0:00:41]} 11. b4 {[%emt 0:00:46]} d4 {[%emt 0:01:53]} 12. exd4 {[%emt 0:00:03]} Nxd4 {[%emt 0:00:07]} 13. Nxd4 {[%emt 0:02:18]} Bxd4 {[%emt 0:00:07]} 14. Qd3 {[%emt 0:01:00]} Bg4 {[%emt 0:01:14]} 15. Bb2 {[%emt 0:03:31]} Re8 {[%emt 0:00:32]} 16. Bxg4 {[%emt 0:04:13]} Bxf2+ {[%emt 0:00:08]} 17. Rxf2 {[%emt 0:00:02]} Qxd3 {[%emt 0:00:02]} 18. Rd1 {[%emt 0:00:29]} Qe3 {[%emt 0:00:41]} 19. Bf3 {[%emt 0:00:10]} Rad8 {[%emt 0:00:12]} 20. Nd5 {[%emt 0:00:15]} Nxd5 {[%emt 0:03:32]} 21. Bxd5 {[%emt 0:00:17]} Rxd5 {[%emt 0:00:24]} 22. Rxd5 {[%emt 0:00:08]} f6 {[%emt 0:00:11]} 23. Rd1 {[%emt 0:00:16]} Rc8 {[%emt 0:00:13]} 24. Kf1 {[%emt 0:00:22]} Qe4 {[%emt 0:00:23]} 25. Re1 {[%emt 0:00:15]} Qd3+ {[%emt 0:00:07]} 26. Kg1 {[%emt 0:00:01]} Rc2 {[%emt 0:00:06]} 27. Rxc2 {[%emt 0:00:01]} Qxc2 {[%emt 0:00:01]} 28. Bc1 {[%emt 0:00:01]} Kf7 {[%emt 0:00:05]} 29. h3 {[%emt 0:00:01]} h5 {[%emt 0:00:10]} 30. Rf1 {[%emt 0:00:00]} Qc4 {[%emt 0:00:14]} 31. Re1 {[%emt 0:00:05]} Qd4+ {[%emt 0:00:06]} 32. Kh1 {[%emt 0:00:01]} h4 {[%emt 0:00:07]} 33. Rf1 {[%emt 0:00:01]} Qc4 {[%emt 0:00:11]} 34. Kg1 {[%emt 0:00:02]} Qd5 {[%emt 0:00:15]} 35. Kh1 {[%emt 0:00:02]} g5 {[%emt 0:00:02]} 36. Kg1 {[%emt 0:00:03]} Kg6 {[%emt 0:00:08]} 37. Kh1 {[%emt 0:00:04]} f5 {[%emt 0:00:50]} 38. Kg1 {[%emt 0:00:01]} Qd4+ {[%emt 0:00:22]} 39. Kh1 {[%emt 0:00:02]} Qd3 {[%emt 0:00:07]} 40. Kg1 {[%emt 0:00:01]} Qe2 {[%emt 0:00:09]} 41. Rf2 {[%emt 0:00:06]} Qd1+ {[%emt 0:00:07]} 42. Rf1 {[%emt 0:00:01]} Qc2 {[%emt 0:00:01]} 43. Re1 {[%emt 0:00:06]} g4 {[%emt 0:00:21]} 44. hxg4 {[%emt 0:00:08]} fxg4 {[%emt 0:00:02]} 45. Be3 {[%emt 0:00:48]} h3 {[%emt 0:00:13]} 46. gxh3 {[%emt 0:00:09]} gxh3 {[%emt 0:00:02]} 47. Bf2 {[%emt 0:00:01]} Qc6 {[%emt 0:00:05]} 48. Kf1 {[%emt 0:00:09]} h2 {[%emt 0:00:42]} 0-1

[Event "ESP-ch Rapid 2018"]
[Site "Linares"]
[Date "2018.08.19"]
[Round "5"]
[White "Redondo Flores, David"]
[Black "Iglesias Leon, Francisco J"]
[Result "1/2-1/2"]
[ECO "C41"]
[WhiteElo "1971"]
[BlackElo "2129"]
[Annotator "NA"]
[PlyCount "51"]
[EventDate "2018.08.19"]
[EventType "team-tourn"]
[EventCountry "ESP"]
[SourceTitle "playchess.com"]
[Source "ChessBase"]
[SourceQuality "1"]
[TimeControl "900+5"]

1. e4 {[%emt 0:00:00]} d6 {[%emt 0:00:00]} 2. d4 {[%emt 0:00:00]} Nf6 {[%emt 0:00:00]} 3. Nc3 {[%emt 0:00:01]} e5 {[%emt 0:00:00]} 4. Nf3 {[%emt 0:00:07]} Nbd7 {[%emt 0:00:00]} 5. Bc4 {[%emt 0:00:03]} Be7 {[%emt 0:00:01]} 6. O-O {[%emt 0:00:03]} O-O {[%emt 0:00:03]} 7. Re1 {[%emt 0:00:03]} b6 {[%emt 0:00:01]} 8. Qe2 {[%emt 0:00:17]} Bb7 {[%emt 0:00:02]} 9. d5 {[%emt 0:00:03]} c6 {[%emt 0:00:05]} 10. h3 {[%emt 0:01:14]} cxd5 {[%emt 0:00:19]} 11. Nxd5 {[%emt 0:00:37]} Nxd5 {[%emt 0:00:36]} 12. Bxd5 {[%emt 0:00:09]} Bxd5 {[%emt 0:00:06]} 13. exd5 {[%emt 0:00:02]} Rc8 {[%emt 0:00:07]} 14. c4 {[%emt 0:00:24]} a6 {[%emt 0:00:33]} 15. b3 {[%emt 0:00:05]} f5 {[%emt 0:00:15]} 16. Ba3 {[%emt 0:00:05]} Nc5 {[%emt 0:00:14]} 17. Nd4 {[%emt 0:00:16]} exd4 {[%emt 0:00:20]} 18. Qxe7 {[%emt 0:00:02]} Qxe7 {[%emt 0:00:01]} 19. Rxe7 {[%emt 0:00:02]} Rce8 {[%emt 0:00:03]} 20. Rae1 {[%emt 0:00:27]} Rxe7 {[%emt 0:00:43]} 21. Rxe7 {[%emt 0:00:02]} Rf7 {[%emt 0:00:02]} 22. Re8+ {[%emt 0:00:10]} Rf8 {[%emt 0:00:02]} 23. Re7 {[%emt 0:00:01]} Rf7 {[%emt 0:00:01]} 24. Re8+ {[%emt 0:00:01]} Rf8 {[%emt 0:00:11]} 25. Re7 {[%emt 0:00:01]} Rf7 {[%emt 0:01:06]} 26. Re8+ 1/2-1/2

[Event "ESP-ch Rapid 2018"]
[Site "Linares"]
[Date "2018.08.19"]
[Round "5"]
[White "Vazquez Pino, Miguel A"]
[Black "Cuesta Bustos, Raul"]
[Result "1/2-1/2"]
[ECO "C06"]
[WhiteElo "1909"]
[BlackElo "2126"]
[Annotator "NA"]
[PlyCount "129"]
[EventDate "2018.08.19"]
[EventType "team-tourn"]
[EventCountry "ESP"]
[SourceTitle "playchess.com"]
[Source "ChessBase"]
[SourceQuality "1"]
[TimeControl "900+5"]

1. e4 {[%emt 0:00:00]} e6 {[%emt 0:00:00]} 2. d4 {[%emt 0:00:00]} d5 {[%emt 0:00:00]} 3. Nd2 {[%emt 0:00:00]} Nf6 {[%emt 0:00:00]} 4. e5 {[%emt 0:00:00]} Nfd7 {[%emt 0:00:00]} 5. Bd3 {[%emt 0:00:01]} c5 {[%emt 0:00:00]} 6. c3 {[%emt 0:00:01]} Nc6 {[%emt 0:00:00]} 7. Ne2 {[%emt 0:00:01]} cxd4 {[%emt 0:00:01]} 8. cxd4 {[%emt 0:00:01]} f6 {[%emt 0:00:01]} 9. exf6 {[%emt 0:00:02]} Nxf6 {[%emt 0:00:01]} 10. Nf3 {[%emt 0:00:01]} Bd6 {[%emt 0:00:01]} 11. O-O {[%emt 0:00:16]} Qc7 {[%emt 0:00:01]} 12. Bd2 {[%emt 0:00:03]} O-O {[%emt 0:00:05]} 13. Rc1 {[%emt 0:00:04]} g6 {[%emt 0:01:10]} 14. Re1 {[%emt 0:00:19]} Qg7 {[%emt 0:00:24]} 15. Nf4 {[%emt 0:01:11]} Ne4 {[%emt 0:00:47]} 16. Bxe4 {[%emt 0:00:17]} Bxf4 {[%emt 0:00:03]} 17. Bb1 {[%emt 0:01:11]} Nxd4 {[%emt 0:01:16]} 18. Nxd4 {[%emt 0:00:36]} Qxd4 {[%emt 0:00:13]} 19. Bc3 {[%emt 0:00:19]} Qxd1 {[%emt 0:01:20]} 20. Rcxd1 {[%emt 0:00:01]} Bd7 {[%emt 0:00:14]} 21. g3 {[%emt 0:00:02]} Bd6 {[%emt 0:00:09]} 22. h4 {[%emt 0:00:15]} Rf7 {[%emt 0:00:26]} 23. Bd4 {[%emt 0:00:17]} b6 {[%emt 0:00:04]} 24. Kg2 {[%emt 0:00:18]} Rc8 {[%emt 0:00:04]} 25. Rh1 {[%emt 0:00:18]} e5 {[%emt 0:00:25]} 26. h5 {[%emt 0:00:22]} exd4 {[%emt 0:00:23]} 27. hxg6 {[%emt 0:00:02]} hxg6 {[%emt 0:00:05]} 28. Bxg6 {[%emt 0:00:17]} Rg7 {[%emt 0:00:07]} 29. Bb1 {[%emt 0:00:02]} Bc5 {[%emt 0:00:57]} 30. Rh4 {[%emt 0:00:09]} Rf8 {[%emt 0:00:43]} 31. Rdh1 {[%emt 0:00:01]} Kf7 {[%emt 0:00:32]} 32. a3 {[%emt 0:00:05]} a5 {[%emt 0:00:08]} 33. Ba2 {[%emt 0:00:18]} Bc6 {[%emt 0:01:37]} 34. Rh6 {[%emt 0:00:02]} Ba8 {[%emt 0:00:08]} 35. b4 {[%emt 0:00:09]} axb4 {[%emt 0:00:02]} 36. axb4 {[%emt 0:00:01]} Bxb4 {[%emt 0:00:08]} 37. Rxb6 {[%emt 0:00:01]} Bc3 {[%emt 0:00:28]} 38. Ra6 {[%emt 0:00:12]} Kg8 {[%emt 0:00:35]} 39. Rxa8 {[%emt 0:00:02]} Rxa8 {[%emt 0:00:08]} 40. Bxd5+ {[%emt 0:00:02]} Kf8 {[%emt 0:00:18]} 41. Bxa8 {[%emt 0:00:01]} d3 {[%emt 0:00:11]} 42. Be4 {[%emt 0:00:08]} d2 {[%emt 0:00:03]} 43. Bf3 {[%emt 0:00:05]} Re7 {[%emt 0:00:07]} 44. Rh5 {[%emt 0:00:20]} Rd7 {[%emt 0:00:19]} 45. Bd1 {[%emt 0:00:12]} Kg7 {[%emt 0:00:06]} 46. Rf5 {[%emt 0:01:09]} Re7 {[%emt 0:00:08]} 47. Rf3 {[%emt 0:00:07]} Ba5 {[%emt 0:00:20]} 48. Rd3 {[%emt 0:00:02]} Re1 {[%emt 0:00:13]} 49. Bg4 {[%emt 0:01:07]} Kf6 {[%emt 0:00:07]} 50. f4 {[%emt 0:00:11]} Bb4 {[%emt 0:00:38]} 51. Bf3 {[%emt 0:00:20]} Re6 {[%emt 0:00:37]} 52. g4 {[%emt 0:00:10]} Rd6 {[%emt 0:00:21]} 53. Rxd6+ Bxd6 {[%emt 0:00:01]} 54. Kg3 {[%emt 0:00:13]} Kg6 {[%emt 0:00:08]} 55. Bd1 {[%emt 0:00:01]} Kf6 {[%emt 0:00:03]} 56. g5+ {[%emt 0:00:04]} Kg7 {[%emt 0:00:19]} 57. Kg4 {[%emt 0:00:01]} Bb4 {[%emt 0:00:05]} 58. f5 {[%emt 0:00:03]} Bc3 {[%emt 0:00:02]} 59. Kh5 {[%emt 0:00:09]} Bb2 {[%emt 0:00:03]} 60. Kg4 {[%emt 0:00:15]} Bc3 {[%emt 0:00:05]} 61. Kf3 {[%emt 0:00:01]} Bb4 {[%emt 0:00:11]} 62. Ke4 {[%emt 0:00:17]} Be7 {[%emt 0:00:07]} 63. f6+ {[%emt 0:00:08]} Bxf6 {[%emt 0:00:01]} 64. gxf6+ {[%emt 0:00:02]} Kxf6 {[%emt 0:00:01]} 65. Kd3 1/2-1/2

[Event "ESP-ch Rapid 2018"]
[Site "Linares"]
[Date "2018.08.19"]
[Round "5"]
[White "Gomez Fernandez, Alfredo"]
[Black "Fernandez Torre, Ivan"]
[Result "0-1"]
[ECO "A05"]
[WhiteElo "1827"]
[BlackElo "2128"]
[Annotator "NA"]
[PlyCount "86"]
[EventDate "2018.08.19"]
[EventType "team-tourn"]
[EventCountry "ESP"]
[SourceTitle "playchess.com"]
[Source "ChessBase"]
[SourceQuality "1"]
[TimeControl "900+5"]

1. Nf3 {[%emt 0:00:00]} Nf6 {[%emt 0:00:00]} 2. g3 {[%emt 0:00:00]} g6 {[%emt 0:00:00]} 3. Bg2 {[%emt 0:00:03]} Bg7 {[%emt 0:00:00]} 4. O-O {[%emt 0:00:04]} O-O {[%emt 0:00:02]} 5. d3 {[%emt 0:00:04]} d6 {[%emt 0:00:07]} 6. e4 {[%emt 0:00:04]} e5 {[%emt 0:00:03]} 7. Nbd2 {[%emt 0:00:28]} h6 {[%emt 0:00:05]} 8. Re1 {[%emt 0:00:04]} c5 {[%emt 0:00:04]} 9. Nf1 {[%emt 0:00:21]} Nc6 {[%emt 0:00:06]} 10. c3 {[%emt 0:00:16]} Be6 {[%emt 0:00:12]} 11. Ne3 {[%emt 0:00:34]} b5 {[%emt 0:00:18]} 12. Bd2 {[%emt 0:00:52]} Qd7 {[%emt 0:00:17]} 13. a3 {[%emt 0:00:58]} a5 {[%emt 0:00:08]} 14. Rb1 {[%emt 0:00:06]} a4 {[%emt 0:00:02]} 15. h4 {[%emt 0:00:12]} Ng4 {[%emt 0:01:21]} 16. Nh2 {[%emt 0:00:22]} Nxe3 {[%emt 0:00:31]} 17. Bxe3 {[%emt 0:00:03]} h5 {[%emt 0:00:05]} 18. Qd2 {[%emt 0:00:17]} Kh7 {[%emt 0:00:05]} 19. Nf3 {[%emt 0:00:16]} f6 {[%emt 0:00:09]} 20. d4 {[%emt 0:00:10]} cxd4 {[%emt 0:00:39]} 21. cxd4 {[%emt 0:00:02]} Na5 {[%emt 0:00:37]} 22. d5 {[%emt 0:01:01]} Bg4 {[%emt 0:00:01]} 23. Qb4 {[%emt 0:00:59]} Rfc8 {[%emt 0:01:36]} 24. Nh2 {[%emt 0:00:18]} Rc4 {[%emt 0:00:40]} 25. Qd2 {[%emt 0:00:11]} Bh3 {[%emt 0:00:27]} 26. Bh1 {[%emt 0:01:56]} Qc7 {[%emt 0:01:02]} 27. Qd3 {[%emt 0:00:10]} Bd7 {[%emt 0:00:20]} 28. Nf3 {[%emt 0:00:11]} Bh6 {[%emt 0:00:22]} 29. Bxh6 {[%emt 0:00:31]} Kxh6 {[%emt 0:00:02]} 30. Qe3+ {[%emt 0:00:02]} Kg7 {[%emt 0:00:10]} 31. Bg2 {[%emt 0:00:38]} Rc8 {[%emt 0:00:14]} 32. Nd2 {[%emt 0:00:59]} Rc2 {[%emt 0:00:43]} 33. Bf1 {[%emt 0:00:22]} Qc5 {[%emt 0:00:07]} 34. Qd3 {[%emt 0:02:16]} Nb3 {[%emt 0:00:30]} 35. Red1 {[%emt 0:01:44]} Bg4 {[%emt 0:01:59]} 36. Be2 {[%emt 0:00:33]} Nd4 {[%emt 0:00:01]} 37. Bxg4 {[%emt 0:00:36]} hxg4 {[%emt 0:00:01]} 38. Qe3 {[%emt 0:00:17]} Nf3+ {[%emt 0:00:21]} 39. Nxf3 {[%emt 0:00:03]} Qxe3 {[%emt 0:00:02]} 40. fxe3 {[%emt 0:00:01]} gxf3 {[%emt 0:00:02]} 41. Rf1 {[%emt 0:00:10]} Rg2+ {[%emt 0:00:03]} 42. Kh1 {[%emt 0:00:05]} Rxg3 {[%emt 0:00:29]} 43. Rg1 {[%emt 0:00:10]} Rh3# 0-1

[Event "ESP-ch Rapid 2018"]
[Site "Linares"]
[Date "2018.08.19"]
[Round "6"]
[White "Ljubojevic, Ljubomir"]
[Black "Sande Edreira, Jose Antonio"]
[Result "1/2-1/2"]
[ECO "E91"]
[WhiteElo "2571"]
[BlackElo "2230"]
[Annotator "ChessBase"]
[PlyCount "110"]
[EventDate "2018.08.19"]
[EventType "team-tourn"]
[EventCountry "ESP"]
[SourceTitle "playchess.com"]
[Source "ChessBase"]
[SourceQuality "1"]
[TimeControl "900+5"]

1. c4 {[%emt 0:00:00]} g6 {[%emt 0:00:00]} 2. d4 {[%emt 0:00:00]} Bg7 {[%emt 0:00:00]} 3. Nf3 {[%emt 0:00:02]} Nf6 {[%emt 0:00:00]} 4. Nc3 {[%emt 0:00:02]} O-O {[%emt 0:00:04]} 5. e4 {[%emt 0:00:01]} d6 {[%emt 0:00:01]} 6. Be2 {[%emt 0:00:03]} c5 {[%emt 0:00:02]} 7. O-O {[%emt 0:00:07]} cxd4 {[%emt 0:00:01]} 8. Nxd4 {[%emt 0:00:02]} Nc6 {[%emt 0:00:02]} 9. Be3 {[%emt 0:00:02]} Bd7 {[%emt 0:00:01]} 10. Qd2 {[%emt 0:00:16]} Nxd4 {[%emt 0:00:06]} 11. Bxd4 {[%emt 0:00:02]} Bc6 {[%emt 0:00:01]} 12. f3 {[%emt 0:00:06]} a5 {[%emt 0:00:01]} 13. b3 {[%emt 0:00:16]} Nd7 {[%emt 0:00:02]} 14. Be3 {[%emt 0:00:02]} Nc5 {[%emt 0:00:06]} 15. Rab1 {[%emt 0:00:11]} e6 {[%emt 0:00:08]} 16. Bd1 {[%emt 0:00:20]} Be5 {[%emt 0:00:14]} 17. Bc2 {[%emt 0:00:40]} Qh4 {[%emt 0:00:09]} 18. g3 {[%emt 0:00:03]} Qe7 {[%emt 0:00:03]} 19. a3 {[%emt 0:00:26]} Rfd8 {[%emt 0:02:43]} 20. b4 {[%emt 0:00:12]} axb4 {[%emt 0:00:10]} 21. axb4 {[%emt 0:00:03]} Ra3 {[%emt 0:00:10]} 22. Ne2 {[%emt 0:01:33]} Na4 {[%emt 0:00:13]} 23. Bxa4 {[%emt 0:00:44]} Rxa4 {[%emt 0:00:35]} 24. Bg5 {[%emt 0:00:54]} Bf6 {[%emt 0:00:34]} 25. Bxf6 {[%emt 0:00:49]} Qxf6 {[%emt 0:00:01]} 26. Qb2 {[%emt 0:00:03]} Qg5 {[%emt 0:00:27]} 27. Nc3 {[%emt 0:01:25]} Ra7 {[%emt 0:00:07]} 28. Rbd1 {[%emt 0:00:34]} Qe3+ {[%emt 0:00:44]} 29. Kg2 {[%emt 0:00:06]} b6 {[%emt 0:00:50]} 30. Rf2 {[%emt 0:00:56]} f5 {[%emt 0:00:06]} 31. exf5 {[%emt 0:00:10]} Rf7 {[%emt 0:00:28]} 32. Qd2 {[%emt 0:01:32]} Qxd2 {[%emt 0:00:10]} 33. Rfxd2 {[%emt 0:00:26]} Rxf5 {[%emt 0:00:11]} 34. Rxd6 {[%emt 0:00:11]} Bxf3+ {[%emt 0:00:13]} 35. Kg1 {[%emt 0:00:01]} Rdf8 {[%emt 0:01:55]} 36. Rf1 {[%emt 0:00:02]} Rc8 {[%emt 0:00:21]} 37. Rxe6 {[%emt 0:01:06]} Rxc4 {[%emt 0:00:03]} 38. Re3 {[%emt 0:00:02]} Bg4 {[%emt 0:00:05]} 39. Rxf5 {[%emt 0:00:06]} Bxf5 {[%emt 0:00:03]} 40. b5 {[%emt 0:00:22]} Rc5 {[%emt 0:00:06]} 41. h4 {[%emt 0:01:43]} Kf8 {[%emt 0:00:04]} 42. Kf2 {[%emt 0:00:24]} Bd7 {[%emt 0:00:24]} 43. Kf3 {[%emt 0:00:15]} Bxb5 {[%emt 0:00:11]} 44. Nxb5 {[%emt 0:00:01]} Rxb5 {[%emt 0:00:02]} 45. Re6 {[%emt 0:00:11]} Rf5+ {[%emt 0:00:35]} 46. Ke4 {[%emt 0:00:19]} b5 {[%emt 0:00:04]} 47. Rc6 {[%emt 0:00:38]} Kg7 {[%emt 0:00:16]} 48. g4 {[%emt 0:00:05]} Rf6 {[%emt 0:01:34]} 49. Rc5 {[%emt 0:00:01]} Rb6 {[%emt 0:00:54]} 50. Rc7+ {[%emt 0:00:02]} Kf6 {[%emt 0:01:14]} 51. g5+ {[%emt 0:00:13]} Ke6 {[%emt 0:00:04]} 52. Rxh7 {[%emt 0:00:14]} Rc6 {[%emt 0:01:21]} 53. h5 {[%emt 0:00:37]} Rc4+ {[%emt 0:00:02]} 54. Kd3 {[%emt 0:00:01]} gxh5 {[%emt 0:00:15]} 55. Rxh5 {[%emt 0:00:03]} Ke5 {Ke4+} 1/2-1/2

[Event "ESP-ch Rapid 2018"]
[Site "Linares"]
[Date "2018.08.19"]
[Round "6"]
[White "Cuenca Jimenez, Jose Fernando"]
[Black "Dominguez Alcon, Victor"]
[Result "0-1"]
[ECO "E92"]
[WhiteElo "2506"]
[BlackElo "2172"]
[Annotator "ChessBase"]
[PlyCount "88"]
[EventDate "2018.08.19"]
[EventType "team-tourn"]
[EventCountry "ESP"]
[SourceTitle "playchess.com"]
[Source "ChessBase"]
[SourceQuality "1"]
[TimeControl "900+5"]

1. Nf3 {[%emt 0:00:00]} Nf6 {[%emt 0:00:00]} 2. c4 {[%emt 0:00:00]} g6 {[%emt 0:00:00]} 3. d4 {[%emt 0:00:05]} Bg7 {[%emt 0:00:02]} 4. Nc3 {[%emt 0:00:01]} O-O {[%emt 0:00:03]} 5. e4 {[%emt 0:00:01]} d6 {[%emt 0:00:01]} 6. Be2 {[%emt 0:00:02]} e5 {[%emt 0:00:03]} 7. d5 {[%emt 0:00:02]} a5 {[%emt 0:00:05]} 8. Bg5 {[%emt 0:00:02]} Na6 {[%emt 0:00:25]} 9. Nd2 {[%emt 0:00:04]} Qe8 {[%emt 0:01:26]} 10. h4 {[%emt 0:00:43]} h6 {[%emt 0:01:36]} 11. Be3 {[%emt 0:00:04]} Nd7 {[%emt 0:00:43]} 12. g4 {[%emt 0:00:20]} Ndc5 {[%emt 0:01:33]} 13. g5 {[%emt 0:02:05]} h5 {[%emt 0:01:09]} 14. Nb3 {[%emt 0:00:53]} a4 {[%emt 0:01:02]} 15. Nxc5 {[%emt 0:00:10]} Nxc5 {[%emt 0:00:02]} 16. Qc2 {[%emt 0:00:08]} Bd7 {[%emt 0:01:22]} 17. Rg1 {[%emt 0:00:16]} c6 {[%emt 0:00:54]} 18. O-O-O {[%emt 0:00:18]} Qe7 {[%emt 0:00:53]} 19. Qd2 {[%emt 0:00:04]} Rfd8 {[%emt 0:00:23]} 20. Kb1 {[%emt 0:00:15]} a3 {[%emt 0:00:30]} 21. b3 {[%emt 0:00:15]} Rab8 {[%emt 0:00:20]} 22. f3 {[%emt 0:00:24]} b6 {[%emt 0:01:55]} 23. b4 {[%emt 0:00:43]} Na4 {[%emt 0:00:59]} 24. Nxa4 {[%emt 0:00:19]} cxd5 {[%emt 0:00:02]} 25. Nc3 {[%emt 0:00:27]} d4 {[%emt 0:00:14]} 26. Nd5 {[%emt 0:00:02]} Qe8 {[%emt 0:00:15]} 27. Bf2 {[%emt 0:00:10]} b5 {[%emt 0:00:07]} 28. Nf6+ {[%emt 0:01:26]} Bxf6 {[%emt 0:00:03]} 29. gxf6 {[%emt 0:00:01]} Qf8 {[%emt 0:00:14]} 30. c5 {[%emt 0:00:18]} dxc5 {[%emt 0:00:08]} 31. bxc5 {[%emt 0:00:01]} Qxc5 {[%emt 0:00:09]} 32. Ka1 {[%emt 0:01:00]} Be6 {[%emt 0:00:10]} 33. Rc1 {[%emt 0:00:13]} Qf8 {[%emt 0:00:20]} 34. Bd1 {[%emt 0:01:05]} Rdc8 {[%emt 0:00:04]} 35. Bb3 {[%emt 0:00:13]} Bxb3 {[%emt 0:00:10]} 36. axb3 {[%emt 0:00:03]} b4 {[%emt 0:00:07]} 37. f4 {[%emt 0:00:51]} Rc3 {[%emt 0:00:12]} 38. f5 {[%emt 0:00:25]} Kh7 {[%emt 0:00:02]} 39. Rxc3 {[%emt 0:03:56]} bxc3 {[%emt 0:00:01]} 40. Qc2 {[%emt 0:00:03]} Qb4 {[%emt 0:00:17]} 41. Rb1 {[%emt 0:00:41]} a2 {[%emt 0:00:01]} 42. Rf1 {[%emt 0:00:07]} d3 {[%emt 0:00:08]} 43. Qxa2 c2 {[%emt 0:00:14]} 44. Be3 {[%emt 0:00:11]} Qc3+ {[%emt 0:00:03]} 0-1

[Event "ESP-ch Rapid 2018"]
[Site "Linares"]
[Date "2018.08.19"]
[Round "6"]
[White "Moreno Trujillo, Alejandro"]
[Black "Santos Latasa, Jaime"]
[Result "0-1"]
[ECO "E32"]
[WhiteElo "2497"]
[BlackElo "2582"]
[Annotator "ChessBase"]
[PlyCount "186"]
[EventDate "2018.08.19"]
[EventType "team-tourn"]
[EventCountry "ESP"]
[SourceTitle "playchess.com"]
[Source "ChessBase"]
[SourceQuality "1"]
[TimeControl "900+5"]

1. d4 {[%emt 0:00:00]} Nf6 {[%emt 0:00:00]} 2. c4 {[%emt 0:00:00]} e6 {[%emt 0:00:00]} 3. Nc3 {[%emt 0:00:00]} Bb4 {[%emt 0:00:00]} 4. Qc2 {[%emt 0:00:03]} O-O {[%emt 0:00:02]} 5. Nf3 {[%emt 0:00:02]} d6 {[%emt 0:00:02]} 6. Bg5 {[%emt 0:00:33]} h6 {[%emt 0:00:06]} 7. Bh4 {[%emt 0:00:02]} b6 {[%emt 0:00:12]} 8. e4 {[%emt 0:00:27]} e5 {[%emt 0:00:12]} 9. Bd3 {[%emt 0:00:58]} Re8 {[%emt 0:01:00]} 10. O-O-O {[%emt 0:02:29]} Bxc3 {[%emt 0:00:11]} 11. Qxc3 {[%emt 0:00:13]} Bg4 {[%emt 0:00:09]} 12. h3 {[%emt 0:00:43]} Bxf3 {[%emt 0:00:17]} 13. gxf3 {[%emt 0:00:01]} Nc6 {[%emt 0:00:07]} 14. dxe5 {[%emt 0:01:16]} Nxe5 {[%emt 0:00:37]} 15. f4 {[%emt 0:01:09]} Ng6 {[%emt 0:00:04]} 16. Bxf6 {[%emt 0:00:39]} Qxf6 {[%emt 0:00:01]} 17. Qxf6 {[%emt 0:00:05]} gxf6 {[%emt 0:00:02]} 18. Rhg1 {[%emt 0:00:15]} Kh8 {[%emt 0:00:13]} 19. f5 {[%emt 0:00:11]} Ne5 {[%emt 0:00:08]} 20. Be2 {[%emt 0:00:28]} Rg8 {[%emt 0:00:11]} 21. Kd2 {[%emt 0:00:08]} Rae8 {[%emt 0:00:23]} 22. Ke3 {[%emt 0:00:33]} Nd7 {[%emt 0:00:12]} 23. Rg4 {[%emt 0:00:31]} Nc5 {[%emt 0:00:26]} 24. f3 {[%emt 0:00:09]} a5 {[%emt 0:00:04]} 25. Kd4 {[%emt 0:00:22]} Re5 {[%emt 0:00:39]} 26. Rxg8+ {[%emt 0:00:12]} Kxg8 {[%emt 0:00:02]} 27. Rg1+ {[%emt 0:00:04]} Kf8 {[%emt 0:00:02]} 28. Bd1 {[%emt 0:00:08]} c6 {[%emt 0:00:40]} 29. Bc2 {[%emt 0:00:08]} Re8 {[%emt 0:00:16]} 30. b3 {[%emt 0:00:29]} Na6 {[%emt 0:00:11]} 31. a3 {[%emt 0:00:04]} c5+ {[%emt 0:00:24]} 32. Ke3 {[%emt 0:00:09]} Nb8 {[%emt 0:00:05]} 33. b4 {[%emt 0:00:12]} axb4 {[%emt 0:00:40]} 34. axb4 {[%emt 0:00:01]} Na6 {[%emt 0:00:00]} 35. Ba4 {[%emt 0:00:42]} Rb8 {[%emt 0:00:20]} 36. bxc5 {[%emt 0:00:08]} bxc5 {[%emt 0:00:03]} 37. Bc6 {[%emt 0:00:48]} Rb3+ {[%emt 0:00:37]} 38. Ke2 {[%emt 0:00:24]} Nb4 {[%emt 0:00:03]} 39. Bd5 {[%emt 0:00:03]} Rb2+ {[%emt 0:00:09]} 40. Ke3 {[%emt 0:00:07]} Rb3+ {[%emt 0:00:52]} 41. Ke2 {[%emt 0:00:01]} Nc2 {[%emt 0:00:22]} 42. Rg3 {[%emt 0:00:29]} Nd4+ {[%emt 0:00:18]} 43. Kf2 {[%emt 0:00:01]} Rb2+ {[%emt 0:00:01]} 44. Kf1 {[%emt 0:00:08]} Ra2 {[%emt 0:01:32]} 45. f4 {[%emt 0:00:08]} h5 {[%emt 0:00:03]} 46. h4 {[%emt 0:00:07]} Nc2 {[%emt 0:01:13]} 47. Rb3 {[%emt 0:00:44]} Nb4 {[%emt 0:00:01]} 48. Kg1 {[%emt 0:00:12]} Re2 {[%emt 0:00:32]} 49. Ra3 {[%emt 0:00:18]} Nxd5 {[%emt 0:00:02]} 50. exd5 {[%emt 0:00:01]} Re4 {[%emt 0:00:01]} 51. Ra6 {[%emt 0:00:10]} Rxf4 {[%emt 0:00:30]} 52. Rxd6 {[%emt 0:00:01]} Rxh4 {[%emt 0:00:06]} 53. Rxf6 {[%emt 0:00:06]} Rxc4 {[%emt 0:00:03]} 54. Rc6 {[%emt 0:00:26]} Rc2 {[%emt 0:00:37]} 55. f6 {[%emt 0:00:02]} Kg8 {[%emt 0:00:04]} 56. Rc7 {[%emt 0:00:03]} c4 {[%emt 0:00:08]} 57. d6 {[%emt 0:00:03]} Rd2 {[%emt 0:00:16]} 58. Rxc4 {[%emt 0:00:26]} Kh7 {[%emt 0:00:34]} 59. Rc6 {[%emt 0:00:01]} Kg6 {[%emt 0:00:05]} 60. Kf1 {[%emt 0:00:01]} Kxf6 {[%emt 0:00:14]} 61. Ke1 {[%emt 0:00:08]} Rd5 {[%emt 0:00:26]} 62. Kf2 {[%emt 0:00:08]} Ke6 {[%emt 0:00:04]} 63. d7+ {[%emt 0:00:12]} Kxd7 {[%emt 0:00:03]} 64. Rh6 {[%emt 0:00:01]} Ke7 {[%emt 0:00:06]} 65. Kf3 {[%emt 0:00:01]} Kf8 {[%emt 0:00:05]} 66. Kf4 {[%emt 0:00:06]} Kg7 {[%emt 0:00:04]} 67. Ra6 {[%emt 0:00:02]} f6 {[%emt 0:00:05]} 68. Ra8 {[%emt 0:00:03]} Rb5 {[%emt 0:00:07]} 69. Rc8 {[%emt 0:00:03]} Kf7 {[%emt 0:00:24]} 70. Ra8 {[%emt 0:00:03]} Rd5 {[%emt 0:00:03]} 71. Rb8 {[%emt 0:00:01]} Ke6 {[%emt 0:00:03]} 72. Re8+ {[%emt 0:00:09]} Kf7 {[%emt 0:00:01]} 73. Ra8 {[%emt 0:00:00]} Kg7 {[%emt 0:00:03]} 74. Rb8 {[%emt 0:00:02]} Ra5 {[%emt 0:00:01]} 75. Rc8 {[%emt 0:00:01]} Ra4+ {[%emt 0:00:06]} 76. Kf5 {[%emt 0:00:12]} h4 {[%emt 0:00:01]} 77. Rc7+ {[%emt 0:00:07]} Kh6 {[%emt 0:00:01]} 78. Kxf6 {[%emt 0:00:03]} Rf4+ {[%emt 0:00:07]} 79. Ke5 {[%emt 0:00:01]} Rf1 {[%emt 0:00:06]} 80. Rc8 {[%emt 0:00:05]} Kg5 {[%emt 0:00:06]} 81. Rg8+ {[%emt 0:00:02]} Kh5 {[%emt 0:00:01]} 82. Ke4 {[%emt 0:00:01]} h3 {[%emt 0:00:07]} 83. Rh8+ {[%emt 0:00:05]} Kg4 {[%emt 0:00:01]} 84. Rg8+ {[%emt 0:00:01]} Kh4 {[%emt 0:00:01]} 85. Ke3 {[%emt 0:00:08]} h2 {[%emt 0:00:26]} 86. Rh8+ {[%emt 0:00:01]} Kg3 {[%emt 0:00:01]} 87. Rg8+ {[%emt 0:00:01]} Kh3 {[%emt 0:00:02]} 88. Rh8+ {[%emt 0:00:01]} Kg2 {[%emt 0:00:01]} 89. Rg8+ {[%emt 0:00:01]} Kh1 {[%emt 0:00:01]} 90. Ke2 {[%emt 0:00:01]} Rg1 {[%emt 0:00:02]} 91. Rh8 {[%emt 0:00:33]} Kg2 {[%emt 0:00:13]} 92. Rg8+ {[%emt 0:00:05]} Kh3 {[%emt 0:00:05]} 93. Rh8+ {[%emt 0:00:02]} Kg3 {[%emt 0:00:00]} 0-1